Workbook

Sheet INSTRUCTIONS
C1: Instructions: Work your way down this sheet to prepare for reporting
C4: Complete Yellow Cells Below
C7: Enter month # for the report month relative to your FY start (from table @ right) So if your FY starts in October and you are reporting for January type in a 4 in the yellow cell to the right. | M7: 8 | P7: here | R7: < Click either option to research when the date of first service was for this FY for each company > | AB7: here
C10: Employer Names type or copy and paste from previous dashboard | H10: Input month # company started (refer to table at right) | L10: FY START OCT | P10: FY START JAN | T10: FY START APR
B11: 1 | C11: Anne Grady Corp. | H11: 2 | K11: =($M$7-H11)+1 -> 7 | L11: Month # | P11: Month # | T11: Month #
B12: 2 | C12: Bittersweet Farms | H12: 3 | K12: =($M$7-H12)+1 -> 6 | L12: 1 | N12: Oct | P12: 1 | R12: Jan | T12: 1 | V12: Apr
B13: 3 | C13: Champagne CRSI | H13: 3 | K13: 6 | L13: 2 | N13: Nov | P13: 2 | R13: Feb | T13: 2 | V13: May
B14: 4 | C14: Community Residential Svcs. | H14: 1 | K14: 8 | L14: 3 | N14: Dec | P14: 3 | R14: Mar | T14: 3 | V14: Jun
B15: 5 | C15: Epilepsy Center | H15: 3 | K15: 6 | L15: 4 | N15: Jan | P15: 4 | R15: Apr | T15: 4 | V15: Jul
B16: 6 | C16: Josina Lott | H16: 1 | K16: 8 | L16: 5 | N16: Feb | P16: 5 | R16: May | T16: 5 | V16: Aug
B17: 7 | C17: Sunshine Communities | H17: 2 | K17: 7 | L17: 6 | N17: Mar | P17: 6 | R17: Jun | T17: 6 | V17: Sep
B18: 8 | C18: Triad | H18: 3 | K18: 6 | L18: 7 | N18: Apr | P18: 7 | R18: Jul | T18: 7 | V18: Oct
B19: 9 | K19: 9 | L19: 8 | N19: May | P19: 8 | R19: Aug | T19: 8 | V19: Nov
B20: 10 | K20: 9 | L20: 9 | N20: Jun | P20: 9 | R20: Sep | T20: 9 | V20: Dec
B21: 11 | K21: 9 | L21: 10 | N21: Jul | P21: 10 | R21: Oct | T21: 10 | V21: Jan
B22: 12 | K22: 9 | L22: 11 | N22: Aug | P22: 11 | R22: Nov | T22: 11 | V22: Feb
B23: 13 | K23: 9 | L23: 12 | N23: Sep | P23: 12 | R23: Dec | T23: 12 | V23: Mar
B24: 14 | K24: 9
K25: =($U$48-H24)+1 -> 1
E27: 1. When complete return here to review how to save multiple pages as a pdf for printing and sending to HR after the meeting.
O33: <= this does not work yet

Sheet 1-PasteSheet
E8: Company Name | G8: HR | H8: Supervisor | I8: Self | J8: Co-worker | K8: Other
E9: Anne Grady Corp. | F9: Record Count | G9: 0 | H9: 0 | I9: 23 | J9: 3 | K9: 1 | L9: 27
E10: Bittersweet Farms | F10: Record Count | G10: 3 | H10: 1 | I10: 11 | J10: 0 | K10: 0 | L10: 15
E11: Champagne (CRSI) | F11: Record Count | G11: 4 | H11: 0 | I11: 2 | J11: 0 | K11: 0 | L11: 6
E12: CRS Community Residential Services | F12: Record Count | G12: 0 | H12: 0 | I12: 1 | J12: 0 | K12: 0 | L12: 1
E13: Epilepsy Center | F13: Record Count | G13: 1 | H13: 0 | I13: 5 | J13: 0 | K13: 0 | L13: 6
E14: Josina Lott | F14: Record Count | G14: 0 | H14: 1 | I14: 0 | J14: 0 | K14: 0 | L14: 1
E15: Sunshine Communities | F15: Record Count | G15: 12 | H15: 2 | I15: 27 | J15: 0 | K15: 1 | L15: 42
E16: Triad | F16: Record Count | G16: 6 | H16: 2 | I16: 10 | J16: 0 | K16: 1

Sheet 2-Dashboard
B1: EaRNed SUCCESS |Monthly Dashboard | FY JAN 2017 - DEC 2017 | AN1: August 2017
G2: Services this Month | J2: Delivered Services YTD | K2: Avg Services / Mo. YTD* | L2: Total Employees Served YTD | M2: Requests this Month by Source | S2: Requests YTD by Source | Y2: Employee Request by Multiple YTD | AC2: Retention % a, b, c | AW2: Employee Utilization %
G3: Delivered | H3: Pending | I3: Total Service Interfaces | M3: Total | N3: HR | O3: Supervisor | P3: Self | Q3: Co-Worker | R3: Other | S3: Total | T3: HR | U3: Supervisor | V3: Self | W3: Co-Worker | X3: Other | Y3: 1x | Z3: 2x | AA3: 3x | AB3: 4x+ | AC3: YTD | AG3: Q1 | AK3: Q2 | AO3: Q3 | AS3: Q4
AC4: Service Related | AE4: ERN General | AG4: Service Related | AI4: ERN General | AK4: Service Related | AM4: ERN General | AO4: Service Related | AQ4: ERN General | AS4: Service Related | AU4: ERN General | AZ4: Don’t Delete
B5: =INSTRUCTIONS!C11 -> Anne Grady Corp. | H5: 9 | I5: =SUM(G5:H5) -> 9 | J5: 27 | K5: =J5/INSTRUCTIONS!K11 -> 3.857142857 | L5: 19 | M5: =SUM(N5:R5) -> 5 | N5: 0 | P5: 3 | Q5: 2 | R5: 0 | S5: =SUM(T5:X5) -> 27 | T5: 0 | U5: 0 | V5: 23 | W5: 3 | X5: 1 | Y5: ='3-Multiplr'!G56 -> 19 | Z5: ='3-Multiplr'!H56 -> 4 | AA5: ='3-Multiplr'!I56 -> 0 | AB5: ='3-Multiplr'!J56 -> 0 | AC5: =IFERROR(AZ5,0) -> 0 | AE5: =IFERROR(BA5,0) -> 0 | AW5: 0.05 | AZ5: =AVERAGE(AG5,AK5,AO5,AS5) ->  | BA5: =AVERAGE(AI5,AN5,AR5,AU5) -> 
B6: =INSTRUCTIONS!C12 -> Bittersweet Farms | G6: 1 | H6: 3 | I6: 4 | J6: 16 | K6: =J6/INSTRUCTIONS!K12 -> 2.666666667 | L6: 11 | M6: =SUM(N6:R6) -> 1 | N6: 0 | P6: 1 | Q6: 0 | R6: 0 | S6: =SUM(T6:X6) -> 15 | T6: 3 | U6: 1 | V6: 11 | W6: 0 | X6: 0 | Y6: ='3-Multiplr'!G57 -> 11 | Z6: ='3-Multiplr'!H57 -> 2 | AA6: ='3-Multiplr'!I57 -> 0 | AB6: ='3-Multiplr'!J57 -> 0 | AC6: =IFERROR(AZ6,0) -> 0 | AE6: =IFERROR(BA6,0) -> 0 | AW6: 0.041
B7: =INSTRUCTIONS!C13 -> Champagne CRSI | G7: 1 | I7: 1 | J7: 5 | K7: =J7/INSTRUCTIONS!K13 -> 0.8333333333 | L7: 5 | M7: 1 | N7: 1 | P7: 0 | Q7: 0 | R7: 0 | S7: 6 | T7: 4 | U7: 0 | V7: 2 | W7: 0 | X7: 0 | Y7: ='3-Multiplr'!G58 -> 6 | Z7: ='3-Multiplr'!H58 -> 0 | AA7: ='3-Multiplr'!I58 -> 0 | AB7: ='3-Multiplr'!J58 -> 0 | AC7: 0 | AE7: 0 | AW7: 0.088 | BA7: =AVERAGE(AI7,AM7,AQ7,AU7) -> 
B8: =INSTRUCTIONS!C14 -> Community Residential Svcs. | I8: 0 | J8: 3 | K8: =J8/INSTRUCTIONS!K14 -> 0.375 | L8: 2 | M8: 0 | R8: 0 | S8: 1 | T8: 0 | U8: 0 | V8: 1 | W8: 0 | X8: 0 | Y8: ='3-Multiplr'!G59 -> 1 | Z8: ='3-Multiplr'!H59 -> 0 | AA8: ='3-Multiplr'!I59 -> 0 | AB8: ='3-Multiplr'!J59 -> 0 | AC8: 0 | AE8: 0 | AW8: 0.043 | BA8: =AVERAGE(AI8,AM8,AQ8,AU8) -> 
B9: =INSTRUCTIONS!C15 -> Epilepsy Center | I9: 0 | J9: 8 | K9: =J9/INSTRUCTIONS!K15 -> 1.333333333 | L9: 6 | M9: 0 | R9: 0 | S9: 6 | T9: 1 | U9: 0 | V9: 5 | W9: 0 | X9: 0 | Y9: ='3-Multiplr'!G60 -> 4 | Z9: ='3-Multiplr'!H60 -> 1 | AA9: ='3-Multiplr'!I60 -> 0 | AB9: ='3-Multiplr'!J60 -> 0 | AC9: 0 | AE9: 0 | AW9: 0.08
B10: =INSTRUCTIONS!C16 -> Josina Lott | I10: 0 | K10: =J10/INSTRUCTIONS!K16 -> 0 | M10: 0 | R10: 0 | S10: 1 | T10: 0 | U10: 1 | V10: 0 | W10: 0 | X10: 0 | Y10: ='3-Multiplr'!G61 -> 1 | Z10: ='3-Multiplr'!H61 -> 0 | AA10: ='3-Multiplr'!I61 -> 0 | AB10: ='3-Multiplr'!J61 -> 0 | AC10: 0 | AE10: 0 | AW10: 0
B11: =INSTRUCTIONS!C17 -> Sunshine Communities | G11: 3 | H11: 4 | I11: 7 | J11: 66 | K11: =J11/INSTRUCTIONS!K17 -> 9.428571429 | L11: 34 | M11: 3 | N11: 1 | P11: 2 | Q11: 0 | R11: 0 | S11: 42 | T11: 12 | U11: 2 | V11: 27 | W11: 0 | X11: 1 | Y11: ='3-Multiplr'!G62 -> 30 | Z11: ='3-Multiplr'!H62 -> 4 | AA11: ='3-Multiplr'!I62 -> 0 | AB11: ='3-Multiplr'!J62 -> 1 | AC11: 0 | AE11: 0 | AW11: 0.052 | BA11: =AVERAGE(AI11,AM11,AQ11,AU11) -> 
B12: =INSTRUCTIONS!C18 -> Triad | G12: 1 | H12: 1 | I12: 2 | J12: 16 | K12: =J12/INSTRUCTIONS!K18 -> 2.666666667 | L12: 7 | M12: 2 | N12: 0 | P12: 2 | Q12: 0 | R12: 0 | S12: 19 | T12: 6 | U12: 2 | V12: 10 | W12: 0 | X12: 1 | Y12: ='3-Multiplr'!G63 -> 15 | Z12: ='3-Multiplr'!H63 -> 2 | AA12: ='3-Multiplr'!I63 -> 0 | AB12: ='3-Multiplr'!J63 -> 0 | AC12: =IFERROR(AZ12,0) -> 0 | AE12: 0 | AW12: =SUM(AW11) -> 0.052 | BA12: =AVERAGE(AI12,AM12,AQ12,AU12) -> 
B13: =INSTRUCTIONS!C19 -> 0 | I13: 0 | K13: =J13/INSTRUCTIONS!K19 -> 0 | M13: 0 | S13: 0 | Y13: ='3-Multiplr'!G64 -> 0 | Z13: ='3-Multiplr'!H64 -> 0 | AA13: ='3-Multiplr'!I64 -> 0 | AB13: ='3-Multiplr'!J64 -> 0 | AC13: 0 | AE13: 0 | BA13: =AVERAGE(AI13,AM13,AQ13,AU13) -> 
B14: =INSTRUCTIONS!C20 -> 0 | I14: 0 | K14: =J14/INSTRUCTIONS!K20 -> 0 | Y14: ='3-Multiplr'!G65 -> 0 | Z14: ='3-Multiplr'!H65 -> 0 | AA14: ='3-Multiplr'!I65 -> 0 | AB14: ='3-Multiplr'!J65 -> 0 | BA14: =AVERAGE(AI14,AM14,AQ14,AU14) -> 
B15: =INSTRUCTIONS!C21 -> 0 | I15: 0 | K15: =J15/INSTRUCTIONS!K21 -> 0 | Y15: ='3-Multiplr'!G66 -> 0 | Z15: ='3-Multiplr'!H66 -> 0 | AA15: ='3-Multiplr'!I66 -> 0 | AB15: ='3-Multiplr'!J66 -> 0 | BA15: =AVERAGE(AI15,AM15,AQ15,AU15) -> 
B16: =INSTRUCTIONS!C22 -> 0 | I16: 0 | K16: =J16/INSTRUCTIONS!K22 -> 0 | Y16: ='3-Multiplr'!G67 -> 0 | Z16: ='3-Multiplr'!H67 -> 0 | AA16: ='3-Multiplr'!I67 -> 0 | AB16: ='3-Multiplr'!J67 -> 0
B17: =INSTRUCTIONS!C23 -> 0 | I17: 0 | K17: =J17/INSTRUCTIONS!K23 -> 0 | M17: 0 | S17: 0 | Y17: ='3-Multiplr'!G68 -> 0 | Z17: ='3-Multiplr'!H68 -> 0 | AA17: ='3-Multiplr'!I68 -> 0 | AB17: ='3-Multiplr'!J68 -> 0 | AC17: 0 | AE17: 0 | BA17: =AVERAGE(AI17,AM17,AQ17,AU17) -> 
B18: =INSTRUCTIONS!C24 -> 0 | I18: 0 | K18: =J18/INSTRUCTIONS!K24 -> 0 | M18: 0 | S18: 0 | Y18: ='3-Multiplr'!G69 -> 0 | Z18: ='3-Multiplr'!H69 -> 0 | AA18: ='3-Multiplr'!I69 -> 0 | AB18: ='3-Multiplr'!J69 -> 0 | AC18: 0 | AE18: 0
B19: Totals/Averages | G19: =SUM(G5:G18) -> 6 | H19: 17 | I19: 23 | J19: 141 | K19: =SUM(K5:K18) -> 21.16071429 | L19: 84 | M19: 12 | N19: 2 | O19: 0 | P19: 8 | Q19: 2 | R19: 0 | S19: 117 | T19: 26 | U19: 6 | V19: 79 | W19: 3 | X19: 3 | Y19: 87 | Z19: 13 | AA19: 0 | AB19: 1 | AC19: =IFERROR(AVERAGEIF(AC5:AC18,"<>0"),0) -> 0 | AE19: 0 | AG19: 0 | AI19: 0 | AK19: 0 | AM19: 0 | AO19: 0 | AQ19: 0 | AS19: 0 | AU19: 0 | AW19: 0.058
B21: * Average Services / YTD count adjusted to month ER joined ERN
M22: aaa | AC22: Ee Served-Type | AH22: Month | AK22: YTD | AO22: Service by Category | AU22: Mo | AW22: YTD
AC23: Total ODJFS | AH23: =SUM(AH24:AJ25) -> 1 | AK23: =SUM(AK24:AK25) -> 1 | AO23: Auto Repair | AU23: ='3-ServiceCats'!L27 -> 0 | AW23: ='3-ServiceCats'!L29 -> 4
AC24: Incumbent ODJFS | AH24: 1 | AK24: 1 | AO24: Career Counseling | AU24: ='3-ServiceCats'!M27 -> 0 | AW24: ='3-ServiceCats'!M29 -> 11
AC25: New ODJFS | AO25: Child Care | AU25: ='3-ServiceCats'!N27 -> 1 | AW25: ='3-ServiceCats'!N29 -> 3
AC26: Non-ODJFS | AH26: =SUM(AH27:AJ28) -> 0 | AK26: =SUM(AK27:AK28) -> 1 | AO26: Child Support | AU26: ='3-ServiceCats'!O27 -> 0 | AW26: ='3-ServiceCats'!O29 -> 0
AC27: Former ODJFS | AO27: Clothing | AU27: ='3-ServiceCats'!P27 -> 0 | AW27: ='3-ServiceCats'!P29 -> 0
AC28: Never ODJFS | AK28: 1 | AO28: Coaching | AU28: ='3-ServiceCats'!Q27 -> 1 | AW28: ='3-ServiceCats'!Q29 -> 11
AC29: Unk/Uncoded | AH29: 5 | AK29: 82 | AO29: Comm Food Rsrc | AU29: ='3-ServiceCats'!R27 -> 0 | AW29: ='3-ServiceCats'!R29 -> 0
AO30: Counseling Request | AU30: ='3-ServiceCats'!S27 -> 1 | AW30: ='3-ServiceCats'!S29 -> 4
AO31: Domestic Violence | AU31: ='3-ServiceCats'!T27 -> 0 | AW31: ='3-ServiceCats'!T29 -> 0
AC32: Total | AH32: =SUM(AH23,AH26,AH29) -> 6 | AK32: =SUM(AK23,AK26,AK29) -> 84 | AO32: Education | AU32: ='3-ServiceCats'!U27 -> 0 | AW32: ='3-ServiceCats'!U29 -> 6
M33: 5-Pies'!C14 | AO33: Elder Care | AU33: ='3-ServiceCats'!V27 -> 0 | AW33: ='3-ServiceCats'!V29 -> 0
AC34: Loans | AO34: Emergency | AU34: ='3-ServiceCats'!W27 -> 0 | AW34: ='3-ServiceCats'!W29 -> 0
O35: 23a | U35: 23b | AC35: New Loans this Month | AK35: 0 | AO35: Employment-Retention | AU35: ='3-ServiceCats'!X27 -> 0 | AW35: ='3-ServiceCats'!X29 -> 6
AC36: Disbursed this Month | AO36: Financial | AU36: ='3-ServiceCats'!Y27 -> 0 | AW36: ='3-ServiceCats'!Y29 -> 9
AC37: Open Bridge Loans | AO37: Financial Literacy | AU37: ='3-ServiceCats'!Z27 -> 1 | AW37: ='3-ServiceCats'!Z29 -> 18
AC38: Paid/Clsed Bridge Loans | AO38: Food Assistance | AU38: ='3-ServiceCats'!AA27 -> 1 | AW38: ='3-ServiceCats'!AA29 -> 2
AC39: Total Disbursed | AK39: 2000 | AO39: Homeless Prev. | AU39: ='3-ServiceCats'!AB27 -> 0 | AW39: ='3-ServiceCats'!AB29 -> 0
AC40: Balance Remaining | AO40: Furniture | AU40: ='3-ServiceCats'!AC27 -> 0 | AW40: ='3-ServiceCats'!AC29 -> 0
AC41: Savings | AO41: Govt Agency Nav. | AU41: ='3-ServiceCats'!AD27 -> 0 | AW41: ='3-ServiceCats'!AD29 -> 2
AC42: Delinquent | AO42: Hard Training | AU42: ='3-ServiceCats'!AE27 -> 0 | AW42: ='3-ServiceCats'!AE29 -> 0
AC43: Loss | AO43: Health/Insurance | AU43: ='3-ServiceCats'!AF27 -> 0 | AW43: ='3-ServiceCats'!AF29 -> 15
AC44: Loss % | AK44: =AK43/AK39 -> 0 | AO44: Home Repair | AU44: ='3-ServiceCats'!AG27 -> 0 | AW44: ='3-ServiceCats'!AG29 -> 2
B45: Story Rank | AO45: Homeless Shelter | AU45: ='3-ServiceCats'!AH27 -> 0 | AW45: ='3-ServiceCats'!AH29 -> 0
AC46: Total Fin Supt | AH46: Month | AK46: YTD | AO46: Housing | AU46: ='3-ServiceCats'!AI27 -> 0 | AW46: ='3-ServiceCats'!AI29 -> 6
AC47: Priv/Com Rsrc | AH47: 473 | AK47: 473 | AO47: Immigration | AU47: ='3-ServiceCats'!AJ27 -> 0 | AW47: ='3-ServiceCats'!AJ29 -> 0
AC48: DHHS | AO48: Legal Assistance | AU48: ='3-ServiceCats'!AK27 -> 0 | AW48: ='3-ServiceCats'!AK29 -> 6
AC49: Alt Public Asst | AO49: Literacy | AU49: ='3-ServiceCats'!AL27 -> 0 | AW49: ='3-ServiceCats'!AL29 -> 1
AC50: Loan | AK50: 2000 | AO50: Other | AU50: ='3-ServiceCats'!AM27 -> 0 | AW50: ='3-ServiceCats'!AM29 -> 8
AC51: Com Food Rsrc | AO51: Soft Training | AU51: ='3-ServiceCats'!AN27 -> 0 | AW51: ='3-ServiceCats'!AN29 -> 14
AC52: Gas Card | AO52: Sub.Abuse/Addictns | AU52: ='3-ServiceCats'!AO27 -> 0 | AW52: ='3-ServiceCats'!AO29 -> 0
AC53: Bus Pass | AO53: Transportation | AU53: ='3-ServiceCats'!AP27 -> 0 | AW53: ='3-ServiceCats'!AP29 -> 4
AO54: Utilities | AU54: ='3-ServiceCats'!AQ27 -> 1 | AW54: ='3-ServiceCats'!AQ29 -> 9
AO55: Water/Public Health | AU55: ='3-ServiceCats'!AR27 -> 0 | AW55: ='3-ServiceCats'!AR29 -> 0
AC56: Total | AH56: =SUM(AD47:AH55) -> 473 | AK56: =SUM(AK47:AM55) -> 2473 | AO56: Total | AU56: =SUM(AU23:AU55) -> 6 | AW56: =SUM(AW23:AW55) -> 141
B57: a - % of ees that were served & still employed or not terminated for a reason related to an issue addressed by the SC during a rolling 12-month lookback & not counted during a previous Q. | AC57: b - the overall retention % of all ERN ees | AL57: c - Insufficient data provided by member to calculate
B59: AUDIT TABLE | F59: Link | G59: to Audit Legend colors
B60: Each matched color pair should be equal (note comment on bottom purple cell). If not, click on the numbers to jump to the source cell above to audit your work. Once there, click on the source cell to jump back to the audit table
B64: Services this Month - Delivered - Total | I64: 1 | J64: =G19 -> 6
B65: Service by Category - Mo - Total | I65: 2 | J65: =AU56 -> 6
B66: Delivered Services YTD | I66: 3 | J66: =J19 -> 141
B67: Service by Category - YTD | I67: 4 | J67: =AW56 -> 141
B68: Unique Emps. Served YTD | I68: 5 | J68: =L19 -> 84
B69: Served/Unq Ee - YTD- Total | I69: 6 | J69: =AK32 -> 84
B70: Bridge Loans - Disbursed this Month | I70: 7 | J70: =AK36 -> 0
B71: Total Fin Supt - Loan - Month | I71: 8 | J71: =AH50 -> 0 | L71: blank if 0
B72: Requests YTD by Source - Total | I72: 9 | J72: =S19 -> 117
B73: Employee Request by Multiple YTD 1,2,3,4+ | I73: 10 | J73: ='3-Multiplr'!F73 -> 117
B74: Monthly - CV and Non-CV/Unk (if CV region) | I74: 11 | L74: CV Regions Only: -Will only match if you have no EEs w/ unknown CV status
B75: Month - Ee Served-Type | I75: 11
B76: YTD - CV and Non-CV/Unk (if CV region) | I76: 12
B77: YTD - Ee Served-Type | I77: 13
B78: Are Total Interfaces greater than Requests? | I78: 14 | J78: =IF(I19>M19,"Yes","No") -> Yes | L78: < Should be Yes 99.99% of the time
B79: Are YTD Services greater than YTD Request? | I79: 15 | J79: =IF(J19>S19,"Yes","No") -> Yes
B80: Trendline Services greater than Requests? | I80: 16 | J80: =IF('4-Trends'!O24>'4-Trends'!O13,"Yes","No") -> Yes
B82: Checklist - Starting and Finalizing the Report
B83: *Field inputs requiring working in the formula bar at the top rather than working in the cell
D85: 1 | E85: Save your file using the naming convention at the right (yellow box)
D86: 2 | E86: Save often
C87: * | D87: 3 | E87: Click | F87: here | G87: to enter the ERN name and insure the fiscal year is current
C88: * | D88: 4 | E88: Click | F88: here | G88: to enter the correct reporting month in the title row
D89: 5 | E89: Click | F89: here | G89: to enter the correct month code
D90: 6 | E90: Click to visit the | I90: Audit Table | K90: to double check your work.
D91: 7 | E91: Adjust the LEFT axis SCALE UNITS on the trendlines so there is not blank space up top and so they are the same top #s for Services and Referrals. Insure you check the loan trendlines also. To learn how to adjust them watch the Youtube video link below
E95: Adjust the Unit Scale
D96: 7 | E96: Save a copy as a pdf to email to James/Duane/HR after the meeting

Sheet 3-Multiplr
E2: Automated Request Multiplier Input Tool
C10: Example Illustration
B11: X-> | Q11: CLICK
C15: Example
E16: Match to Count Numbers Columns Below
B17: ¶ | C17: Company Name | E17: 1 | F17: 2 | G17: 3 | H17: 4 | I17: 6 | J17: 9 | K17: 10 | L17: 11
C18: Co 1 | D18: Record Count | E18: 17 | F18: 6 | G18: 1 | H18: 2 | I18: 0 | J18: 0 | K18: 0 | L18: 0 | M18: 26
C19: Co 2 | D19: Record Count | E19: 19 | F19: 4 | G19: 0 | H19: 1 | I19: 0 | J19: 0 | K19: 0 | L19: 0 | M19: 24
C20: Co 3 | D20: Record Count | E20: 33 | F20: 5 | G20: 2 | H20: 2 | I20: 0 | J20: 1 | K20: 0 | L20: 1 | M20: =SUM(E20:L20) -> 44
E21: Continious Block 1-5 | I21: 6 | J21: Continious Block 9-11
C54: Company Match Audit | E54: Should Match | U54: V V Match Count Numbers Here V V
C55: Correct List | D55: Should match left list | E55: Dash | F55: Here | G55: 1 | H55: 2 | I55: 3 | J55: 4+ | K55: 1 | L55: 2 | M55: 3 | N55: 4 | O55: 5 | P55: 6 | Q55: 7 | R55: 8 | S55: 9 | T55: 10 | U55: 11 | V55: 12 | W55: 13 | X55: 14 | Y55: 15 | Z55: 16 | AA55: 17 | AB55: 18 | AC55: 19 | AD55: 20 | AE55: 21 | AF55: 22 | AG55: 23 | AH55: 24 | AI55: 25 | AJ55: 26 | AK55: 27 | AL55: 28 | AM55: 29 | AN55: 30 | AO55: 31 | AP55: 32 | AQ55: 33 | AR55: 34 | AS55: 35
B56: 1 | C56: ='2-Dashboard'!B5 -> Anne Grady Corp. | D56: =C34 -> 0 | E56: ='2-Dashboard'!S5 -> 27 | F56: =K56*$K$55+L56*$L$55+M56*$M$55+N56*$N$55+O56*$O$55+P56*$P$55+Q56*$Q$55+R56*$R$55+S56*$S$55+T56*$T$55+U56*$U$55+V56*$V$55+W56*$W$55+X56*$X$55 -> 27 | G56: =K56 -> 19 | H56: =L56 -> 4 | I56: =M56 -> 0 | J56: =SUM(N56:AS56) -> 0 | K56: 19 | L56: 4 | M56: 0 | N56: 0
B57: 2 | C57: ='2-Dashboard'!B6 -> Bittersweet Farms | D57: =C35 -> 0 | E57: ='2-Dashboard'!S6 -> 15 | F57: =K57*$K$55+L57*$L$55+M57*$M$55+N57*$N$55+O57*$O$55+P57*$P$55+Q57*$Q$55+R57*$R$55+S57*$S$55+T57*$T$55+U57*$U$55+V57*$V$55+W57*$W$55+X57*$X$55 -> 15 | G57: =K57 -> 11 | H57: 2 | I57: 0 | J57: =SUM(N57:AS57) -> 0 | K57: 11 | L57: 2
B58: 3 | C58: ='2-Dashboard'!B7 -> Champagne CRSI | D58: 0 | E58: ='2-Dashboard'!S7 -> 6 | F58: 6 | G58: 6 | H58: 0 | I58: 0 | J58: 0 | K58: 6
B59: 4 | C59: ='2-Dashboard'!B8 -> Community Residential Svcs. | D59: 0 | E59: ='2-Dashboard'!S8 -> 1 | F59: 1 | G59: 1 | H59: 0 | I59: 0 | J59: 0 | K59: 1
B60: 5 | C60: ='2-Dashboard'!B9 -> Epilepsy Center | D60: 0 | E60: ='2-Dashboard'!S9 -> 6 | F60: 6 | G60: 4 | H60: 1 | I60: 0 | J60: 0 | K60: 4 | L60: 1
B61: 6 | C61: ='2-Dashboard'!B10 -> Josina Lott | D61: 0 | E61: ='2-Dashboard'!S10 -> 1 | F61: 1 | G61: 1 | H61: 0 | I61: 0 | J61: 0 | K61: 1
B62: 7 | C62: ='2-Dashboard'!B11 -> Sunshine Communities | D62: 0 | E62: ='2-Dashboard'!S11 -> 42 | F62: 42 | G62: 30 | H62: 4 | I62: 0 | J62: 1 | K62: 30 | L62: 4 | M62: 0 | N62: 1
B63: 8 | C63: ='2-Dashboard'!B12 -> Triad | D63: 0 | E63: ='2-Dashboard'!S12 -> 19 | F63: 19 | G63: 15 | H63: 2 | I63: 0 | J63: 0 | K63: 15 | L63: 2
B64: 9 | C64: ='2-Dashboard'!B13 -> 0 | D64: 0 | E64: ='2-Dashboard'!S13 -> 0 | F64: 0 | G64: 0 | H64: 0 | I64: 0 | J64: 0
B65: 10 | C65: ='2-Dashboard'!B14 -> 0 | D65: 0 | E65: ='2-Dashboard'!S14 -> 0 | F65: 0 | G65: 0 | H65: 0 | I65: 0 | J65: 0
B66: 11 | C66: ='2-Dashboard'!B15 -> 0 | D66: 0 | E66: ='2-Dashboard'!S15 -> 0 | F66: 0 | G66: =K66 -> 0 | H66: =L66 -> 0 | I66: =M66 -> 0 | J66: =SUM(N66:AS66) -> 0
B67: 12 | C67: ='2-Dashboard'!B16 -> 0 | D67: 0 | E67: ='2-Dashboard'!S16 -> 0 | F67: =K67*$K$55+L67*$L$55+M67*$M$55+N67*$N$55+O67*$O$55+P67*$P$55+Q67*$Q$55+R67*$R$55+S67*$S$55+T67*$T$55+U67*$U$55+V67*$V$55+W67*$W$55+X67*$X$55 -> 0 | G67: =K67 -> 0 | H67: =L67 -> 0 | I67: =M67 -> 0 | J67: =SUM(N67:AS67) -> 0
B68: 13 | C68: ='2-Dashboard'!B17 -> 0 | D68: 0 | E68: ='2-Dashboard'!S17 -> 0 | F68: 0 | G68: 0 | H68: 0 | I68: 0 | J68: 0
B69: 14 | C69: ='2-Dashboard'!B18 -> 0 | D69: 0 | E69: ='2-Dashboard'!S18 -> 0 | F69: 0 | G69: 0 | H69: 0 | I69: 0 | J69: 0
C70: Summary Row | E70: =SUM(E56:E69) -> 117 | F70: =SUM(F56:F69) -> 117 | G70: =SUM(G56:G69) -> 87 | H70: =SUM(H56:H69) -> 13 | I70: =SUM(I56:I69) -> 0 | J70: 1 | K70: =SUM(K56:K69) -> 87 | L70: 13 | M70: 0 | N70: 1 | O70: 0 | P70: 0 | Q70: 0 | R70: 0 | S70: 0 | T70: 0 | U70: 0 | V70: 0 | W70: 0 | X70: 0 | Y70: 0 | Z70: 0 | AA70: 0 | AB70: 0 | AC70: 0 | AD70: 0 | AE70: 0 | AF70: 0 | AG70: 0 | AH70: 0 | AI70: 0 | AJ70: 0 | AK70: 0 | AL70: 0 | AM70: 0 | AN70: 0 | AO70: 0 | AP70: 0 | AQ70: 0 | AR70: 0 | AS70: 0
C71: Multiple Row | G71: =G70*G55 -> 87 | H71: =H70*H55 -> 26 | I71: =I70*I55 -> 0 | J71: 4 | N71: =N70*N55 -> 4 | O71: 0 | P71: 0 | Q71: 0 | R71: 0 | S71: 0 | T71: 0 | U71: 0 | V71: 0 | W71: 0 | X71: 0 | Y71: 0 | Z71: 0 | AA71: 0 | AB71: 0 | AC71: 0 | AD71: 0 | AE71: 0 | AF71: 0 | AG71: 0 | AH71: 0 | AI71: 0 | AJ71: 0 | AK71: 0 | AL71: 0 | AM71: 0 | AN71: 0 | AO71: 0 | AP71: 0 | AQ71: 0 | AR71: 0 | AS71: 0
F72: â
B73: Total to Audit Table | F73: =SUM(G71:J71) -> 117
B74: Requst Count from Dashboard | F74: ='2-Dashboard'!J72 -> 117
H76: Click to return to dashboard

Sheet 3-Multiplr (2) (hidden)
E2: Automated Request Multiplier Input Tool
C10: Example Illustration
B11: X-> | Q11: CLICK
C15: Example
E16: Match to Count Numbers Columns Below
B17: ¶ | C17: Company Name | E17: 1 | F17: 2 | G17: 3 | H17: 4 | I17: 6 | J17: 9 | K17: 10 | L17: 11
C18: Co 1 | D18: Record Count | E18: 17 | F18: 6 | G18: 1 | H18: 2 | I18: 0 | J18: 0 | K18: 0 | L18: 0 | M18: 26
C19: Co 2 | D19: Record Count | E19: 19 | F19: 4 | G19: 0 | H19: 1 | I19: 0 | J19: 0 | K19: 0 | L19: 0 | M19: 24
C20: Co 3 | D20: Record Count | E20: 33 | F20: 5 | G20: 2 | H20: 2 | I20: 0 | J20: 1 | K20: 0 | L20: 1 | M20: =SUM(E20:L20) -> 44
E21: Continious Block 1-5 | I21: 6 | J21: Continious Block 9-11
C33: Company Name | E33: 1 | F33: 2 | G33: 3 | H33: 4 | I33: 5 | J33: 6 | K33: 7 | L33: 9 | M33: 10
C34: Aspen | D34: Record Count | E34: 33 | F34: 5 | G34: 2 | H34: 2 | I34: 0 | J34: 1 | K34: 0 | L34: 0 | M34: 0 | N34: 43
C35: Corium | D35: Record Count | E35: 11 | F35: 2 | G35: 0 | H35: 0 | I35: 0 | J35: 0 | K35: 0 | L35: 0 | M35: 0 | N35: 13
C36: Holland Home | D36: Record Count | E36: 46 | F36: 6 | G36: 4 | H36: 2 | I36: 1 | J36: 0 | K36: 1 | L36: 0 | M36: 0 | N36: 60
C37: Ranir | D37: Record Count | E37: 39 | F37: 4 | G37: 1 | H37: 0 | I37: 1 | J37: 0 | K37: 2 | L37: 1 | M37: 1 | N37: 49
C38: Sunset | D38: Record Count | E38: 24 | F38: 2 | G38: 3 | H38: 1 | I38: 1 | J38: 1 | K38: 0 | L38: 0 | M38: 0
C54: Company Match Audit | E54: Should Match | U54: V V Match Count Numbers Here V V
C55: Correct List | D55: Should match left list | E55: Dash | F55: Here | G55: 1 | H55: 2 | I55: 3 | J55: 4+ | K55: 1 | L55: 2 | M55: 3 | N55: 4 | O55: 5 | P55: 6 | Q55: 7 | R55: 8 | S55: 9 | T55: 10 | U55: 11 | V55: 12 | W55: 13 | X55: 14 | Y55: 15 | Z55: 16 | AA55: 17 | AB55: 18 | AC55: 19 | AD55: 20 | AE55: 21 | AF55: 22 | AG55: 23 | AH55: 24 | AI55: 25 | AJ55: 26 | AK55: 27 | AL55: 28 | AM55: 29 | AN55: 30 | AO55: 31 | AP55: 32 | AQ55: 33 | AR55: 34 | AS55: 35
B56: 1 | C56: ='2-Dashboard'!B5 -> Anne Grady Corp. | D56: =C34 -> Aspen | E56: ='2-Dashboard'!S5 -> 27 | F56: =K56*$K$55+L56*$L$55+M56*$M$55+N56*$N$55+O56*$O$55+P56*$P$55+Q56*$Q$55+R56*$R$55+S56*$S$55+T56*$T$55+U56*$U$55+V56*$V$55+W56*$W$55+X56*$X$55 -> 63 | G56: =K56 -> 33 | H56: =L56 -> 5 | I56: =M56 -> 2 | J56: =SUM(N56:AS56) -> 3 | K56: 33 | L56: 5 | M56: 2 | N56: 2 | O56: 0 | P56: 1 | Q56: 0 | S56: 0 | T56: 0
B57: 2 | C57: ='2-Dashboard'!B6 -> Bittersweet Farms | D57: =C35 -> Corium | E57: ='2-Dashboard'!S6 -> 15 | F57: =K57*$K$55+L57*$L$55+M57*$M$55+N57*$N$55+O57*$O$55+P57*$P$55+Q57*$Q$55+R57*$R$55+S57*$S$55+T57*$T$55+U57*$U$55+V57*$V$55+W57*$W$55+X57*$X$55 -> 15 | G57: =K57 -> 11 | H57: 2 | I57: 0 | J57: =SUM(N57:AS57) -> 0 | K57: 11 | L57: 2 | M57: 0 | N57: 0 | O57: 0 | P57: 0 | Q57: 0 | S57: 0 | T57: 0
B58: 3 | C58: ='2-Dashboard'!B7 -> Champagne CRSI | D58: Holland Home | E58: ='2-Dashboard'!S7 -> 6 | F58: 90 | G58: 46 | H58: 6 | I58: 4 | J58: 4 | K58: 46 | L58: 6 | M58: 4 | N58: 2 | O58: 1 | P58: 0 | Q58: 1 | S58: 0 | T58: 0
B59: 4 | C59: ='2-Dashboard'!B8 -> Community Residential Svcs. | D59: Ranir | E59: ='2-Dashboard'!S8 -> 1 | F59: 88 | G59: 39 | H59: 4 | I59: 1 | J59: 5 | K59: 39 | L59: 4 | M59: 1 | N59: 0 | O59: 1 | P59: 0 | Q59: 2 | S59: 1 | T59: 1
B60: 5 | C60: ='2-Dashboard'!B9 -> Epilepsy Center | D60: Sunset | E60: ='2-Dashboard'!S9 -> 6 | F60: 52 | G60: 24 | H60: 2 | I60: 3 | J60: 3 | K60: 24 | L60: 2 | M60: 3 | N60: 1 | O60: 1 | P60: 1 | Q60: 0 | S60: 0 | T60: 0
B61: 6 | C61: ='2-Dashboard'!B10 -> Josina Lott | D61: 0 | E61: ='2-Dashboard'!S10 -> 1 | F61: 0 | G61: 0 | H61: 0 | I61: 0 | J61: 0
B62: 7 | C62: ='2-Dashboard'!B11 -> Sunshine Communities | D62: 0 | E62: ='2-Dashboard'!S11 -> 42 | F62: 0 | G62: 0 | H62: 0 | I62: 0 | J62: 0
B63: 8 | C63: ='2-Dashboard'!B12 -> Triad | D63: 0 | E63: ='2-Dashboard'!S12 -> 19 | F63: 0 | G63: 0 | H63: 0 | I63: 0 | J63: 0
B64: 9 | C64: ='2-Dashboard'!B13 -> 0 | D64: 0 | E64: ='2-Dashboard'!S13 -> 0 | F64: 0 | G64: 0 | H64: 0 | I64: 0 | J64: 0
B65: 10 | C65: ='2-Dashboard'!B14 -> 0 | D65: 0 | E65: ='2-Dashboard'!S14 -> 0 | F65: 0 | G65: 0 | H65: 0 | I65: 0 | J65: 0
B66: 11 | C66: ='2-Dashboard'!B15 -> 0 | D66: 0 | E66: ='2-Dashboard'!S15 -> 0 | F66: 0 | G66: =K66 -> 0 | H66: =L66 -> 0 | I66: =M66 -> 0 | J66: =SUM(N66:AS66) -> 0
B67: 12 | C67: ='2-Dashboard'!B16 -> 0 | D67: 0 | E67: ='2-Dashboard'!S16 -> 0 | F67: 0 | G67: =K67 -> 0 | H67: 0 | I67: 0 | J67: =SUM(N67:AS67) -> 0
B68: 13 | C68: ='2-Dashboard'!B17 -> 0 | D68: 0 | E68: ='2-Dashboard'!S17 -> 0 | F68: 0 | G68: 0 | H68: 0 | I68: 0 | J68: 0
B69: 14 | C69: ='2-Dashboard'!B18 -> 0 | D69: 0 | E69: ='2-Dashboard'!S18 -> 0 | F69: 0 | G69: 0 | H69: 0 | I69: 0 | J69: 0
C70: Summary Row | E70: =SUM(E56:E69) -> 117 | F70: =SUM(F56:F69) -> 308 | G70: =SUM(G56:G69) -> 153 | H70: =SUM(H56:H69) -> 19 | I70: =SUM(I56:I69) -> 10 | J70: 15 | K70: =SUM(K56:K69) -> 153 | L70: 19 | M70: 10 | N70: 5 | O70: 3 | P70: 2 | Q70: 3 | R70: 0 | S70: 1 | T70: 1 | U70: 0 | V70: 0 | W70: 0 | X70: 0 | Y70: 0 | Z70: 0 | AA70: 0 | AB70: 0 | AC70: 0 | AD70: 0 | AE70: 0 | AF70: 0 | AG70: 0 | AH70: 0 | AI70: 0 | AJ70: 0 | AK70: 0 | AL70: 0 | AM70: 0 | AN70: 0 | AO70: 0 | AP70: 0 | AQ70: 0 | AR70: 0 | AS70: 0
C71: Multiple Row | G71: =G70*G55 -> 153 | H71: =H70*H55 -> 38 | I71: =I70*I55 -> 30 | J71: 87 | N71: =N70*N55 -> 20 | O71: 15 | P71: 12 | Q71: 21 | R71: 0 | S71: 9 | T71: 10 | U71: 0 | V71: 0 | W71: 0 | X71: 0 | Y71: 0 | Z71: 0 | AA71: 0 | AB71: 0 | AC71: 0 | AD71: 0 | AE71: 0 | AF71: 0 | AG71: 0 | AH71: 0 | AI71: 0 | AJ71: 0 | AK71: 0 | AL71: 0 | AM71: 0 | AN71: 0 | AO71: 0 | AP71: 0 | AQ71: 0 | AR71: 0 | AS71: 0
F72: â
B73: Total to Audit Table | F73: =SUM(G71:J71) -> 308
B74: Requst Count from Dashboard | F74: ='2-Dashboard'!J72 -> 117
H76: Click to return to dashboard

Sheet 3-ServiceCats
B27: Insert Month #15 Service Cat data here | K27: Click | L27: 0 | M27: 0 | N27: 1 | O27: 0 | P27: 0 | Q27: 1 | R27: 0 | S27: 1 | T27: 0 | U27: 0 | V27: 0 | W27: 0 | X27: 0 | Y27: 0 | Z27: 1 | AA27: 1 | AB27: 0 | AC27: 0 | AD27: 0 | AE27: 0 | AF27: 0 | AG27: 0 | AH27: 0 | AI27: 0 | AJ27: 0 | AK27: 0 | AL27: 0 | AM27: 0 | AN27: 0 | AO27: 0 | AP27: 0 | AQ27: 1 | AT27: =SUM(L27:AS27) -> 6
B29: Insert YTD #16 Service Cat data here | K29: Click | L29: 4 | M29: 11 | N29: 3 | O29: 0 | P29: 0 | Q29: 11 | R29: 0 | S29: 4 | T29: 0 | U29: 6 | V29: 0 | W29: 0 | X29: 6 | Y29: 9 | Z29: 18 | AA29: 2 | AB29: 0 | AC29: 0 | AD29: 2 | AE29: 0 | AF29: 15 | AG29: 2 | AH29: 0 | AI29: 6 | AJ29: 0 | AK29: 6 | AL29: 1 | AM29: 8 | AN29: 14 | AO29: 0 | AP29: 4 | AQ29: 9 | AT29: =SUM(L29:AS29) -> 141
K31: ^
K32: Click above links to access SF page | T32: CLICK TO GO BACK TO DASHBOARD

Sheet 4-Trends
C9: Requests Per Month |Multi -Year Comparison
C10: Jan | D10: Feb | E10: Mar | F10: Apr | G10: May | H10: Jun | I10: Jul | J10: Aug | K10: Sep | L10: Oct | M10: Nov | N10: Dec
A11: Previous FY | O11: =SUM(C11:N11) -> 0
A12: Prev FY Gap fill | B12: Rare!
A13: FY16/17 | B13: click | C13: 1 | D13: 10 | E13: 34 | F13: 20 | G13: 18 | H13: 11 | I13: 11 | J13: 12 | O13: =SUM(C13:N13) -> 117
A14: FY Gap Fill | B14: Rare!
C20: Delivered Services Per Month | Multi-Year Comparison
C21: Jan | D21: Feb | E21: Mar | F21: Apr | G21: May | H21: Jun | I21: Jul | J21: Aug | K21: Sep | L21: Oct | M21: Nov | N21: Dec
A22: Previous FY | O22: =SUM(C22:N22) -> 0
A23: Prev FY Gap fill | B23: Rare!
A24: FY16/17 | B24: click | C24: 1 | D24: 9 | E24: 41 | F24: 25 | G24: 30 | H24: 13 | I24: 16 | J24: 6 | O24: =SUM(C24:N24) -> 141
A25: FY Gap Fill | B25: Rare!
C32: Loans $ Delivered Per Month | Multi- Year Comparison
C33: Jan | D33: Feb | E33: Mar | F33: Apr | G33: May | H33: Jun | I33: Jul | J33: Aug | K33: Sep | L33: Oct | M33: Nov | N33: Dec
A34: Previous FY | O34: =SUM(C34:N34) -> 0 | Q34: Click to Go Back to Dashboard
A35: Prev FY Gap fill
A36: FY16/17 | F36: 1000 | G36: 1000 | H36: 0 | I36: 0 | J36: 0 | O36: =SUM(C36:N36) -> 2000
A37: FY Gap Fill

Sheet 5-Pies
B7: Type | C7: Loans - Program To Date by Type
B8: Incmbnt DHHS
B9: New DHHS
B10: Frmr DHHS
B11: Never DHHS | C11: 1 | F11: To rotate the position of the slices in a pie chart for better label visability visit ...
B12: Unknown | C12: 1
C13: ^ | D13: =SUM(C8:C12) -> 2
C14: Click Here
F15: To remove any low (less than 5?) value data labels,
F16: click multiple times on the specifc label until just that label shows and then hit the delete key.
D18: S | J18: Click to return to dashboard after pasting data
B21: Insert - Loan by Need Reason in row 25 below in the green cell
B22: Click Here
B24: Auto Repair | C24: Career Counseling | D24: Child Care | E24: Child Support | F24: Clothing | G24: Coaching | H24: Comm Food Rsrc | I24: Counseling Request | J24: Domestic Violence | K24: Education | L24: Elder Care | M24: Emergency | N24: Employment | O24: Financial | P24: Financial Literacy | Q24: Food Assistance | R24: Homeless Prev. | S24: Furniture | T24: Govt Agency Nav. | U24: Hard Training | V24: Health/Insurance | W24: Home Repair | X24: Homeless Shelter | Y24: Housing | Z24: Immigration | AA24: Legal Assistance | AB24: Literacy | AC24: Other | AD24: Soft Training | AE24: Sub. Abuse/Addictions | AF24: Transportation | AG24: Utilities | AH24: Water/Public Health
O25: 1 | V25: 1
A27: =SUM(B25:AH25) -> 2
C28: YTD Loan $ by Need Reason
B29: Auto Repair | C29: =B25 -> 0 | D29: <
B30: Car Purchase | C30: =AF25 -> 0 | D30: <
B31: Financial | C31: =O25 -> 1 | D31: < - all data populates from below
B32: Homless Prev. | C32: =R25 -> 0 | D32: <
B33: Home Repair | C33: =W25 -> 0 | D33: <
B34: Utilities | C34: =AG25 -> 0
B35: Other | C35: =SUM(C25:N25,P25:Q25,S25:V25,X25:AE25,AH25) -> 1
D36: =SUM(C29:C35) -> 2

Sheet Paste ER Names (hidden)
A2: Paste names from Dashboard sheet below
A3: ='2-Dashboard'!B5 -> Anne Grady Corp.
A4: ='2-Dashboard'!B6 -> Bittersweet Farms
A5: ='2-Dashboard'!B7 -> Champagne CRSI
A6: ='2-Dashboard'!B8 -> Community Residential Svcs.
A7: ='2-Dashboard'!B9 -> Epilepsy Center
A8: ='2-Dashboard'!B10 -> Josina Lott
A9: ='2-Dashboard'!B11 -> Sunshine Communities
A10: ='2-Dashboard'!B12 -> Triad
A11: ='2-Dashboard'!B13 -> 0
A12: ='2-Dashboard'!B17 -> 0

Sheet Serices Graph (hidden)
B2: GLBERN |Monthly Dashboard | FY OCT 2016 - SEP 2017 | O2: August 2017
G9: 55 | J9: 101
G10: 2 | J10: 10 | L10: 7

Sheet 6-CatCoPaste
A1: STEP 1. Click here to access the SF Cat by Company report | B1: STEP 2. Copy and then Paste raw data into the Blue Cell below (click here to jump there) | C1: STEP 3. see cell A29 STEP 4. see cell A29 STEP 5. Scroll down to row 36
C3: STEP 6. Copy all numbers from where you pasted them below (starting in B38) once blank rows are removed. STEP 7. Tranpose paste into adjacent Green Cell (ask Duane if you don’t know how) . STEP 8. The data will auto populate onto the next tab. | D3: 2 | E3: 1 | F3: 0 | G3: 0 | H3: 0 | J3: 0 | K3: 1
D4: 0 | E4: 2 | F4: 3 | G4: 0 | H4: 0 | J4: 5 | K4: 1
D5: 1 | E5: 0 | F5: 0 | G5: 0 | H5: 0 | J5: 2 | K5: 0
D6: 0 | E6: 0 | F6: 0 | G6: 0 | H6: 0 | J6: 0 | K6: 0
D7: 0 | E7: 0 | F7: 0 | G7: 0 | H7: 0 | J7: 0 | K7: 0
D8: 2 | E8: 0 | F8: 1 | G8: 0 | H8: 1 | J8: 6 | K8: 1
D9: 0 | E9: 0 | F9: 0 | G9: 0 | H9: 0 | J9: 0 | K9: 0
D10: 1 | E10: 1 | F10: 0 | G10: 0 | H10: 0 | J10: 2 | K10: 0
D11: 0 | E11: 0 | F11: 0 | G11: 0 | H11: 0 | J11: 0 | K11: 0
D12: 1 | E12: 1 | F12: 0 | G12: 0 | H12: 0 | J12: 4 | K12: 0
D13: 0 | E13: 0 | F13: 0 | G13: 0 | H13: 0 | J13: 0 | K13: 0
D14: 0 | E14: 0 | F14: 0 | G14: 0 | H14: 0 | J14: 0 | K14: 0
D15: 0 | E15: 1 | F15: 0 | G15: 0 | H15: 1 | J15: 4 | K15: 0
D16: 5 | E16: 0 | F16: 0 | G16: 0 | H16: 0 | J16: 4 | K16: 0
D17: 2 | E17: 3 | F17: 0 | G17: 0 | H17: 5 | J17: 4 | K17: 4
D18: 0 | E18: 0 | F18: 0 | G18: 0 | H18: 0 | J18: 1 | K18: 1
D19: 0 | E19: 0 | F19: 0 | G19: 0 | H19: 0 | J19: 0 | K19: 0
D20: 0 | E20: 0 | F20: 0 | G20: 0 | H20: 0 | J20: 0 | K20: 0
D21: 0 | E21: 0 | F21: 0 | G21: 0 | H21: 0 | J21: 2 | K21: 0
D22: 0 | E22: 0 | F22: 0 | G22: 0 | H22: 0 | J22: 0 | K22: 0
D23: 2 | E23: 2 | F23: 0 | G23: 2 | H23: 0 | J23: 8 | K23: 1
D24: 1 | E24: 0 | F24: 0 | G24: 0 | H24: 0 | J24: 1 | K24: 0
D25: 0 | E25: 0 | F25: 0 | G25: 0 | H25: 0 | J25: 0 | K25: 0
D26: 1 | E26: 0 | F26: 0 | G26: 0 | H26: 0 | J26: 4 | K26: 1
D27: 0 | E27: 0 | F27: 0 | G27: 0 | H27: 0 | J27: 0 | K27: 0
D28: 1 | E28: 1 | F28: 0 | G28: 0 | H28: 0 | J28: 3 | K28: 1
D29: 0 | E29: 0 | F29: 0 | G29: 0 | H29: 0 | J29: 1 | K29: 0
D30: 2 | E30: 2 | F30: 0 | G30: 0 | H30: 0 | J30: 1 | K30: 3
D31: 0 | E31: 1 | F31: 0 | G31: 0 | H31: 1 | J31: 11 | K31: 1
D32: 0 | E32: 0 | F32: 0 | G32: 0 | H32: 0 | J32: 0 | K32: 0
D33: 2 | E33: 0 | F33: 0 | G33: 1 | H33: 0 | J33: 1 | K33: 0
D34: 4 | E34: 1 | F34: 1 | G34: 0 | H34: 0 | J34: 2 | K34: 1
D36: Auto Repair | E36: Career Counseling | F36: Child Care | G36: Child Support | H36: Clothing | I36: Coaching | J36: Food - Community | K36: Counseling Referral | L36: Domestic Violence | M36: Education | N36: Elder Care | O36: Emergency | P36: Employment-RETENTION | Q36: Financial | R36: Financial Literacy | S36: Food - FAP/SNAP | T36: Foreclosure/Evic Prev. | U36: Furniture | V36: Govt. Agency Navigation | W36: Hard Training | X36: Health/Insurance | Y36: Home Repair | Z36: Homeless Shelter | AA36: Housing | AB36: Immigration | AC36: Legal Assistance | AD36: Literacy | AE36: Other | AF36: Soft Training | AG36: Sub. Abuse/Addictions | AH36: Transportation | AI36: Utilities
C38: Company Name: Anne Grady Corp.(27 records) | D38: 2 | E38: 0 | F38: 1 | G38: 0 | H38: 0 | I38: 2 | J38: 0 | K38: 1 | L38: 0 | M38: 1 | N38: 0 | O38: 0 | P38: 0 | Q38: 5 | R38: 2 | S38: 0 | T38: 0 | U38: 0 | V38: 0 | W38: 0 | X38: 2 | Y38: 1 | Z38: 0 | AA38: 1 | AB38: 0 | AC38: 1 | AD38: 0 | AE38: 2 | AF38: 0 | AG38: 0 | AH38: 2 | AI38: 4
C39: Company Name: Bittersweet Farms (16 records) | D39: 1 | E39: 2 | F39: 0 | G39: 0 | H39: 0 | I39: 0 | J39: 0 | K39: 1 | L39: 0 | M39: 1 | N39: 0 | O39: 0 | P39: 1 | Q39: 0 | R39: 3 | S39: 0 | T39: 0 | U39: 0 | V39: 0 | W39: 0 | X39: 2 | Y39: 0 | Z39: 0 | AA39: 0 | AB39: 0 | AC39: 1 | AD39: 0 | AE39: 2 | AF39: 1 | AG39: 0 | AH39: 0 | AI39: 1
C40: Company Name: Champagne (CRSI) (5 records) | D40: 0 | E40: 3 | F40: 0 | G40: 0 | H40: 0 | I40: 1 | J40: 0 | K40: 0 | L40: 0 | M40: 0 | N40: 0 | O40: 0 | P40: 0 | Q40: 0 | R40: 0 | S40: 0 | T40: 0 | U40: 0 | V40: 0 | W40: 0 | X40: 0 | Y40: 0 | Z40: 0 | AA40: 0 | AB40: 0 | AC40: 0 | AD40: 0 | AE40: 0 | AF40: 0 | AG40: 0 | AH40: 0 | AI40: 1
C41: Company Name: CRS Community Residential Services (3 records) | D41: 0 | E41: 0 | F41: 0 | G41: 0 | H41: 0 | I41: 0 | J41: 0 | K41: 0 | L41: 0 | M41: 0 | N41: 0 | O41: 0 | P41: 0 | Q41: 0 | R41: 0 | S41: 0 | T41: 0 | U41: 0 | V41: 0 | W41: 0 | X41: 2 | Y41: 0 | Z41: 0 | AA41: 0 | AB41: 0 | AC41: 0 | AD41: 0 | AE41: 0 | AF41: 0 | AG41: 0 | AH41: 1 | AI41: 0
C42: Company Name: Epilepsy Center (8 records) | D42: 0 | E42: 0 | F42: 0 | G42: 0 | H42: 0 | I42: 1 | J42: 0 | K42: 0 | L42: 0 | M42: 0 | N42: 0 | O42: 0 | P42: 1 | Q42: 0 | R42: 5 | S42: 0 | T42: 0 | U42: 0 | V42: 0 | W42: 0 | X42: 0 | Y42: 0 | Z42: 0 | AA42: 0 | AB42: 0 | AC42: 0 | AD42: 0 | AE42: 0 | AF42: 1 | AG42: 0 | AH42: 0 | AI42: 0
C44: Company Name: Sunshine Communities(66 records) | D44: 0 | E44: 5 | F44: 2 | G44: 0 | H44: 0 | I44: 6 | J44: 0 | K44: 2 | L44: 0 | M44: 4 | N44: 0 | O44: 0 | P44: 4 | Q44: 4 | R44: 4 | S44: 1 | T44: 0 | U44: 0 | V44: 2 | W44: 0 | X44: 8 | Y44: 1 | Z44: 0 | AA44: 4 | AB44: 0 | AC44: 3 | AD44: 1 | AE44: 1 | AF44: 11 | AG44: 0 | AH44: 1 | AI44: 2
C45: Company Name: Triad(16 records) | D45: 1 | E45: 1 | F45: 0 | G45: 0 | H45: 0 | I45: 1 | J45: 0 | K45: 0 | L45: 0 | M45: 0 | N45: 0 | O45: 0 | P45: 0 | Q45: 0 | R45: 4 | S45: 1 | T45: 0 | U45: 0 | V45: 0 | W45: 0 | X45: 1 | Y45: 0 | Z45: 0 | AA45: 1 | AB45: 0 | AC45: 1 | AD45: 0 | AE45: 3 | AF45: 1 | AG45: 0 | AH45: 0 | AI45: 1

Sheet 7-CatCoReport
G4: =LEFT(G54,LEN(G54)-44) -> EaRNed SUCCESS | W4: ='2-Dashboard'!AN1 -> August 2017
J6: Totals | K6: ='Paste ER Names'!A3 -> Anne Grady Corp. | L6: ='Paste ER Names'!A4 -> Bittersweet Farms | M6: ='Paste ER Names'!A5 -> Champagne CRSI | N6: ='Paste ER Names'!A6 -> Community Residential Svcs. | O6: ='Paste ER Names'!A7 -> Epilepsy Center | P6: ='Paste ER Names'!A8 -> Josina Lott | Q6: ='Paste ER Names'!A9 -> Sunshine Communities | R6: ='Paste ER Names'!A10 -> Triad | S6: ='Paste ER Names'!A11 -> 0 | T6: ='Paste ER Names'!A12 -> 0 | U6: ='Paste ER Names'!A13 -> 0
G8: YTD - Service by Category Type
G9: Auto Repair | J9: =SUM(K9:U9) -> 4 | K9: ='6-CatCoPaste'!D3 -> 2 | L9: ='6-CatCoPaste'!E3 -> 1 | M9: ='6-CatCoPaste'!F3 -> 0 | N9: ='6-CatCoPaste'!G3 -> 0 | O9: ='6-CatCoPaste'!H3 -> 0 | P9: ='6-CatCoPaste'!I3 -> 0 | Q9: ='6-CatCoPaste'!J3 -> 0 | R9: ='6-CatCoPaste'!K3 -> 1 | S9: ='6-CatCoPaste'!L3 -> 0 | T9: ='6-CatCoPaste'!M3 -> 0 | U9: ='6-CatCoPaste'!N3 -> 0
G10: Career Counseling | J10: 11 | K10: ='6-CatCoPaste'!D4 -> 0 | L10: ='6-CatCoPaste'!E4 -> 2 | M10: ='6-CatCoPaste'!F4 -> 3 | N10: ='6-CatCoPaste'!G4 -> 0 | O10: ='6-CatCoPaste'!H4 -> 0 | P10: ='6-CatCoPaste'!I4 -> 0 | Q10: ='6-CatCoPaste'!J4 -> 5 | R10: ='6-CatCoPaste'!K4 -> 1 | S10: ='6-CatCoPaste'!L4 -> 0 | T10: ='6-CatCoPaste'!M4 -> 0 | U10: ='6-CatCoPaste'!N4 -> 0
G11: Child Care | J11: 3 | K11: ='6-CatCoPaste'!D5 -> 1 | L11: ='6-CatCoPaste'!E5 -> 0 | M11: ='6-CatCoPaste'!F5 -> 0 | N11: ='6-CatCoPaste'!G5 -> 0 | O11: ='6-CatCoPaste'!H5 -> 0 | P11: ='6-CatCoPaste'!I5 -> 0 | Q11: ='6-CatCoPaste'!J5 -> 2 | R11: ='6-CatCoPaste'!K5 -> 0 | S11: ='6-CatCoPaste'!L5 -> 0 | T11: ='6-CatCoPaste'!M5 -> 0 | U11: ='6-CatCoPaste'!N5 -> 0
G12: Child Support | J12: 0 | K12: ='6-CatCoPaste'!D6 -> 0 | L12: ='6-CatCoPaste'!E6 -> 0 | M12: ='6-CatCoPaste'!F6 -> 0 | N12: ='6-CatCoPaste'!G6 -> 0 | O12: ='6-CatCoPaste'!H6 -> 0 | P12: ='6-CatCoPaste'!I6 -> 0 | Q12: ='6-CatCoPaste'!J6 -> 0 | R12: ='6-CatCoPaste'!K6 -> 0 | S12: ='6-CatCoPaste'!L6 -> 0 | T12: ='6-CatCoPaste'!M6 -> 0 | U12: ='6-CatCoPaste'!N6 -> 0
G13: Clothing | J13: 0 | K13: ='6-CatCoPaste'!D7 -> 0 | L13: ='6-CatCoPaste'!E7 -> 0 | M13: ='6-CatCoPaste'!F7 -> 0 | N13: ='6-CatCoPaste'!G7 -> 0 | O13: ='6-CatCoPaste'!H7 -> 0 | P13: ='6-CatCoPaste'!I7 -> 0 | Q13: ='6-CatCoPaste'!J7 -> 0 | R13: ='6-CatCoPaste'!K7 -> 0 | S13: ='6-CatCoPaste'!L7 -> 0 | T13: ='6-CatCoPaste'!M7 -> 0 | U13: ='6-CatCoPaste'!N7 -> 0
G14: Coaching | J14: 11 | K14: ='6-CatCoPaste'!D8 -> 2 | L14: ='6-CatCoPaste'!E8 -> 0 | M14: ='6-CatCoPaste'!F8 -> 1 | N14: ='6-CatCoPaste'!G8 -> 0 | O14: ='6-CatCoPaste'!H8 -> 1 | P14: ='6-CatCoPaste'!I8 -> 0 | Q14: ='6-CatCoPaste'!J8 -> 6 | R14: ='6-CatCoPaste'!K8 -> 1 | S14: ='6-CatCoPaste'!L8 -> 0 | T14: ='6-CatCoPaste'!M8 -> 0 | U14: ='6-CatCoPaste'!N8 -> 0
G15: Food - Community | J15: 0 | K15: ='6-CatCoPaste'!D9 -> 0 | L15: ='6-CatCoPaste'!E9 -> 0 | M15: ='6-CatCoPaste'!F9 -> 0 | N15: ='6-CatCoPaste'!G9 -> 0 | O15: ='6-CatCoPaste'!H9 -> 0 | P15: ='6-CatCoPaste'!I9 -> 0 | Q15: ='6-CatCoPaste'!J9 -> 0 | R15: ='6-CatCoPaste'!K9 -> 0 | S15: ='6-CatCoPaste'!L9 -> 0 | T15: ='6-CatCoPaste'!M9 -> 0 | U15: ='6-CatCoPaste'!N9 -> 0
G16: Counseling Referral | J16: 4 | K16: ='6-CatCoPaste'!D10 -> 1 | L16: ='6-CatCoPaste'!E10 -> 1 | M16: ='6-CatCoPaste'!F10 -> 0 | N16: ='6-CatCoPaste'!G10 -> 0 | O16: ='6-CatCoPaste'!H10 -> 0 | P16: ='6-CatCoPaste'!I10 -> 0 | Q16: ='6-CatCoPaste'!J10 -> 2 | R16: ='6-CatCoPaste'!K10 -> 0 | S16: ='6-CatCoPaste'!L10 -> 0 | T16: ='6-CatCoPaste'!M10 -> 0 | U16: ='6-CatCoPaste'!N10 -> 0
G17: Domestic Violence | J17: 0 | K17: ='6-CatCoPaste'!D11 -> 0 | L17: ='6-CatCoPaste'!E11 -> 0 | M17: ='6-CatCoPaste'!F11 -> 0 | N17: ='6-CatCoPaste'!G11 -> 0 | O17: ='6-CatCoPaste'!H11 -> 0 | P17: ='6-CatCoPaste'!I11 -> 0 | Q17: ='6-CatCoPaste'!J11 -> 0 | R17: ='6-CatCoPaste'!K11 -> 0 | S17: ='6-CatCoPaste'!L11 -> 0 | T17: ='6-CatCoPaste'!M11 -> 0 | U17: ='6-CatCoPaste'!N11 -> 0
G18: Education | J18: 6 | K18: ='6-CatCoPaste'!D12 -> 1 | L18: ='6-CatCoPaste'!E12 -> 1 | M18: ='6-CatCoPaste'!F12 -> 0 | N18: ='6-CatCoPaste'!G12 -> 0 | O18: ='6-CatCoPaste'!H12 -> 0 | P18: ='6-CatCoPaste'!I12 -> 0 | Q18: ='6-CatCoPaste'!J12 -> 4 | R18: ='6-CatCoPaste'!K12 -> 0 | S18: ='6-CatCoPaste'!L12 -> 0 | T18: ='6-CatCoPaste'!M12 -> 0 | U18: ='6-CatCoPaste'!N12 -> 0
G19: Elder Care | J19: 0 | K19: ='6-CatCoPaste'!D13 -> 0 | L19: ='6-CatCoPaste'!E13 -> 0 | M19: ='6-CatCoPaste'!F13 -> 0 | N19: ='6-CatCoPaste'!G13 -> 0 | O19: ='6-CatCoPaste'!H13 -> 0 | P19: ='6-CatCoPaste'!I13 -> 0 | Q19: ='6-CatCoPaste'!J13 -> 0 | R19: ='6-CatCoPaste'!K13 -> 0 | S19: ='6-CatCoPaste'!L13 -> 0 | T19: ='6-CatCoPaste'!M13 -> 0 | U19: ='6-CatCoPaste'!N13 -> 0
G20: Emergency | J20: 0 | K20: ='6-CatCoPaste'!D14 -> 0 | L20: ='6-CatCoPaste'!E14 -> 0 | M20: ='6-CatCoPaste'!F14 -> 0 | N20: ='6-CatCoPaste'!G14 -> 0 | O20: ='6-CatCoPaste'!H14 -> 0 | P20: ='6-CatCoPaste'!I14 -> 0 | Q20: ='6-CatCoPaste'!J14 -> 0 | R20: ='6-CatCoPaste'!K14 -> 0 | S20: ='6-CatCoPaste'!L14 -> 0 | T20: ='6-CatCoPaste'!M14 -> 0 | U20: ='6-CatCoPaste'!N14 -> 0
G21: Employment - Retention | J21: 6 | K21: ='6-CatCoPaste'!D15 -> 0 | L21: ='6-CatCoPaste'!E15 -> 1 | M21: ='6-CatCoPaste'!F15 -> 0 | N21: ='6-CatCoPaste'!G15 -> 0 | O21: ='6-CatCoPaste'!H15 -> 1 | P21: ='6-CatCoPaste'!I15 -> 0 | Q21: ='6-CatCoPaste'!J15 -> 4 | R21: ='6-CatCoPaste'!K15 -> 0 | S21: ='6-CatCoPaste'!L15 -> 0 | T21: ='6-CatCoPaste'!M15 -> 0 | U21: ='6-CatCoPaste'!N15 -> 0
G22: Financial | J22: 9 | K22: ='6-CatCoPaste'!D16 -> 5 | L22: ='6-CatCoPaste'!E16 -> 0 | M22: ='6-CatCoPaste'!F16 -> 0 | N22: ='6-CatCoPaste'!G16 -> 0 | O22: ='6-CatCoPaste'!H16 -> 0 | P22: ='6-CatCoPaste'!I16 -> 0 | Q22: ='6-CatCoPaste'!J16 -> 4 | R22: ='6-CatCoPaste'!K16 -> 0 | S22: ='6-CatCoPaste'!L16 -> 0 | T22: ='6-CatCoPaste'!M16 -> 0 | U22: ='6-CatCoPaste'!N16 -> 0
G23: Financial Literacy | J23: 18 | K23: ='6-CatCoPaste'!D17 -> 2 | L23: ='6-CatCoPaste'!E17 -> 3 | M23: ='6-CatCoPaste'!F17 -> 0 | N23: ='6-CatCoPaste'!G17 -> 0 | O23: ='6-CatCoPaste'!H17 -> 5 | P23: ='6-CatCoPaste'!I17 -> 0 | Q23: ='6-CatCoPaste'!J17 -> 4 | R23: ='6-CatCoPaste'!K17 -> 4 | S23: ='6-CatCoPaste'!L17 -> 0 | T23: ='6-CatCoPaste'!M17 -> 0 | U23: ='6-CatCoPaste'!N17 -> 0
G24: Food - FAP/SNAP | J24: 2 | K24: ='6-CatCoPaste'!D18 -> 0 | L24: ='6-CatCoPaste'!E18 -> 0 | M24: ='6-CatCoPaste'!F18 -> 0 | N24: ='6-CatCoPaste'!G18 -> 0 | O24: ='6-CatCoPaste'!H18 -> 0 | P24: ='6-CatCoPaste'!I18 -> 0 | Q24: ='6-CatCoPaste'!J18 -> 1 | R24: ='6-CatCoPaste'!K18 -> 1 | S24: ='6-CatCoPaste'!L18 -> 0 | T24: ='6-CatCoPaste'!M18 -> 0 | U24: ='6-CatCoPaste'!N18 -> 0
G25: Foreclosure/Evic Prev. | J25: 0 | K25: ='6-CatCoPaste'!D19 -> 0 | L25: ='6-CatCoPaste'!E19 -> 0 | M25: ='6-CatCoPaste'!F19 -> 0 | N25: ='6-CatCoPaste'!G19 -> 0 | O25: ='6-CatCoPaste'!H19 -> 0 | P25: ='6-CatCoPaste'!I19 -> 0 | Q25: ='6-CatCoPaste'!J19 -> 0 | R25: ='6-CatCoPaste'!K19 -> 0 | S25: ='6-CatCoPaste'!L19 -> 0 | T25: ='6-CatCoPaste'!M19 -> 0 | U25: ='6-CatCoPaste'!N19 -> 0
G26: Furniture | J26: 0 | K26: ='6-CatCoPaste'!D20 -> 0 | L26: ='6-CatCoPaste'!E20 -> 0 | M26: ='6-CatCoPaste'!F20 -> 0 | N26: ='6-CatCoPaste'!G20 -> 0 | O26: ='6-CatCoPaste'!H20 -> 0 | P26: ='6-CatCoPaste'!I20 -> 0 | Q26: ='6-CatCoPaste'!J20 -> 0 | R26: ='6-CatCoPaste'!K20 -> 0 | S26: ='6-CatCoPaste'!L20 -> 0 | T26: ='6-CatCoPaste'!M20 -> 0 | U26: ='6-CatCoPaste'!N20 -> 0
G27: Govt. Agency Navigation | J27: 2 | K27: ='6-CatCoPaste'!D21 -> 0 | L27: ='6-CatCoPaste'!E21 -> 0 | M27: ='6-CatCoPaste'!F21 -> 0 | N27: ='6-CatCoPaste'!G21 -> 0 | O27: ='6-CatCoPaste'!H21 -> 0 | P27: ='6-CatCoPaste'!I21 -> 0 | Q27: ='6-CatCoPaste'!J21 -> 2 | R27: ='6-CatCoPaste'!K21 -> 0 | S27: ='6-CatCoPaste'!L21 -> 0 | T27: ='6-CatCoPaste'!M21 -> 0 | U27: ='6-CatCoPaste'!N21 -> 0
G28: Hard Training | J28: 0 | K28: ='6-CatCoPaste'!D22 -> 0 | L28: ='6-CatCoPaste'!E22 -> 0 | M28: ='6-CatCoPaste'!F22 -> 0 | N28: ='6-CatCoPaste'!G22 -> 0 | O28: ='6-CatCoPaste'!H22 -> 0 | P28: ='6-CatCoPaste'!I22 -> 0 | Q28: ='6-CatCoPaste'!J22 -> 0 | R28: ='6-CatCoPaste'!K22 -> 0 | S28: ='6-CatCoPaste'!L22 -> 0 | T28: ='6-CatCoPaste'!M22 -> 0 | U28: ='6-CatCoPaste'!N22 -> 0
G29: Health/Insurance | J29: 15 | K29: ='6-CatCoPaste'!D23 -> 2 | L29: ='6-CatCoPaste'!E23 -> 2 | M29: ='6-CatCoPaste'!F23 -> 0 | N29: ='6-CatCoPaste'!G23 -> 2 | O29: ='6-CatCoPaste'!H23 -> 0 | P29: ='6-CatCoPaste'!I23 -> 0 | Q29: ='6-CatCoPaste'!J23 -> 8 | R29: ='6-CatCoPaste'!K23 -> 1 | S29: ='6-CatCoPaste'!L23 -> 0 | T29: ='6-CatCoPaste'!M23 -> 0 | U29: ='6-CatCoPaste'!N23 -> 0
G30: Home Repair | J30: 2 | K30: ='6-CatCoPaste'!D24 -> 1 | L30: ='6-CatCoPaste'!E24 -> 0 | M30: ='6-CatCoPaste'!F24 -> 0 | N30: ='6-CatCoPaste'!G24 -> 0 | O30: ='6-CatCoPaste'!H24 -> 0 | P30: ='6-CatCoPaste'!I24 -> 0 | Q30: ='6-CatCoPaste'!J24 -> 1 | R30: ='6-CatCoPaste'!K24 -> 0 | S30: ='6-CatCoPaste'!L24 -> 0 | T30: ='6-CatCoPaste'!M24 -> 0 | U30: ='6-CatCoPaste'!N24 -> 0
G31: Homeless Shelter | J31: 0 | K31: ='6-CatCoPaste'!D25 -> 0 | L31: ='6-CatCoPaste'!E25 -> 0 | M31: ='6-CatCoPaste'!F25 -> 0 | N31: ='6-CatCoPaste'!G25 -> 0 | O31: ='6-CatCoPaste'!H25 -> 0 | P31: ='6-CatCoPaste'!I25 -> 0 | Q31: ='6-CatCoPaste'!J25 -> 0 | R31: ='6-CatCoPaste'!K25 -> 0 | S31: ='6-CatCoPaste'!L25 -> 0 | T31: ='6-CatCoPaste'!M25 -> 0 | U31: ='6-CatCoPaste'!N25 -> 0
G32: Housing | J32: 6 | K32: ='6-CatCoPaste'!D26 -> 1 | L32: ='6-CatCoPaste'!E26 -> 0 | M32: ='6-CatCoPaste'!F26 -> 0 | N32: ='6-CatCoPaste'!G26 -> 0 | O32: ='6-CatCoPaste'!H26 -> 0 | P32: ='6-CatCoPaste'!I26 -> 0 | Q32: ='6-CatCoPaste'!J26 -> 4 | R32: ='6-CatCoPaste'!K26 -> 1 | S32: ='6-CatCoPaste'!L26 -> 0 | T32: ='6-CatCoPaste'!M26 -> 0 | U32: ='6-CatCoPaste'!N26 -> 0
G33: Immigration | J33: 0 | K33: ='6-CatCoPaste'!D27 -> 0 | L33: ='6-CatCoPaste'!E27 -> 0 | M33: ='6-CatCoPaste'!F27 -> 0 | N33: ='6-CatCoPaste'!G27 -> 0 | O33: ='6-CatCoPaste'!H27 -> 0 | P33: ='6-CatCoPaste'!I27 -> 0 | Q33: ='6-CatCoPaste'!J27 -> 0 | R33: ='6-CatCoPaste'!K27 -> 0 | S33: ='6-CatCoPaste'!L27 -> 0 | T33: ='6-CatCoPaste'!M27 -> 0 | U33: ='6-CatCoPaste'!N27 -> 0
G34: Legal Assistance | J34: 6 | K34: ='6-CatCoPaste'!D28 -> 1 | L34: ='6-CatCoPaste'!E28 -> 1 | M34: ='6-CatCoPaste'!F28 -> 0 | N34: ='6-CatCoPaste'!G28 -> 0 | O34: ='6-CatCoPaste'!H28 -> 0 | P34: ='6-CatCoPaste'!I28 -> 0 | Q34: ='6-CatCoPaste'!J28 -> 3 | R34: ='6-CatCoPaste'!K28 -> 1 | S34: ='6-CatCoPaste'!L28 -> 0 | T34: ='6-CatCoPaste'!M28 -> 0 | U34: ='6-CatCoPaste'!N28 -> 0
G35: Literacy | J35: 1 | K35: ='6-CatCoPaste'!D29 -> 0 | L35: ='6-CatCoPaste'!E29 -> 0 | M35: ='6-CatCoPaste'!F29 -> 0 | N35: ='6-CatCoPaste'!G29 -> 0 | O35: ='6-CatCoPaste'!H29 -> 0 | P35: ='6-CatCoPaste'!I29 -> 0 | Q35: ='6-CatCoPaste'!J29 -> 1 | R35: ='6-CatCoPaste'!K29 -> 0 | S35: ='6-CatCoPaste'!L29 -> 0 | T35: ='6-CatCoPaste'!M29 -> 0 | U35: ='6-CatCoPaste'!N29 -> 0
G36: Other | J36: 8 | K36: ='6-CatCoPaste'!D30 -> 2 | L36: ='6-CatCoPaste'!E30 -> 2 | M36: ='6-CatCoPaste'!F30 -> 0 | N36: ='6-CatCoPaste'!G30 -> 0 | O36: ='6-CatCoPaste'!H30 -> 0 | P36: ='6-CatCoPaste'!I30 -> 0 | Q36: ='6-CatCoPaste'!J30 -> 1 | R36: ='6-CatCoPaste'!K30 -> 3 | S36: ='6-CatCoPaste'!L30 -> 0 | T36: ='6-CatCoPaste'!M30 -> 0 | U36: ='6-CatCoPaste'!N30 -> 0
G37: Soft Training | J37: 14 | K37: ='6-CatCoPaste'!D31 -> 0 | L37: ='6-CatCoPaste'!E31 -> 1 | M37: ='6-CatCoPaste'!F31 -> 0 | N37: ='6-CatCoPaste'!G31 -> 0 | O37: ='6-CatCoPaste'!H31 -> 1 | P37: ='6-CatCoPaste'!I31 -> 0 | Q37: ='6-CatCoPaste'!J31 -> 11 | R37: ='6-CatCoPaste'!K31 -> 1 | S37: ='6-CatCoPaste'!L31 -> 0 | T37: ='6-CatCoPaste'!M31 -> 0 | U37: ='6-CatCoPaste'!N31 -> 0
G38: Sub. Abuse/Addictions | J38: 0 | K38: ='6-CatCoPaste'!D32 -> 0 | L38: ='6-CatCoPaste'!E32 -> 0 | M38: ='6-CatCoPaste'!F32 -> 0 | N38: ='6-CatCoPaste'!G32 -> 0 | O38: ='6-CatCoPaste'!H32 -> 0 | P38: ='6-CatCoPaste'!I32 -> 0 | Q38: ='6-CatCoPaste'!J32 -> 0 | R38: ='6-CatCoPaste'!K32 -> 0 | S38: ='6-CatCoPaste'!L32 -> 0 | T38: ='6-CatCoPaste'!M32 -> 0 | U38: ='6-CatCoPaste'!N32 -> 0
G39: Transportation | J39: 4 | K39: ='6-CatCoPaste'!D33 -> 2 | L39: ='6-CatCoPaste'!E33 -> 0 | M39: ='6-CatCoPaste'!F33 -> 0 | N39: ='6-CatCoPaste'!G33 -> 1 | O39: ='6-CatCoPaste'!H33 -> 0 | P39: ='6-CatCoPaste'!I33 -> 0 | Q39: ='6-CatCoPaste'!J33 -> 1 | R39: ='6-CatCoPaste'!K33 -> 0 | S39: ='6-CatCoPaste'!L33 -> 0 | T39: ='6-CatCoPaste'!M33 -> 0 | U39: ='6-CatCoPaste'!N33 -> 0
G40: Utilities | J40: 9 | K40: ='6-CatCoPaste'!D34 -> 4 | L40: ='6-CatCoPaste'!E34 -> 1 | M40: ='6-CatCoPaste'!F34 -> 1 | N40: ='6-CatCoPaste'!G34 -> 0 | O40: ='6-CatCoPaste'!H34 -> 0 | P40: ='6-CatCoPaste'!I34 -> 0 | Q40: ='6-CatCoPaste'!J34 -> 2 | R40: ='6-CatCoPaste'!K34 -> 1 | S40: ='6-CatCoPaste'!L34 -> 0 | T40: ='6-CatCoPaste'!M34 -> 0 | U40: ='6-CatCoPaste'!N34 -> 0
G42: Total | J42: =SUM(J9:J41) -> 141 | K42: =SUM(K9:K41) -> 27 | L42: =SUM(L9:L41) -> 16 | M42: =SUM(M9:M41) -> 5 | N42: =SUM(N9:N41) -> 3 | O42: =SUM(O9:O41) -> 8 | P42: 0 | Q42: 66 | R42: 16 | S42: 0 | T42: 0 | U42: 0
G45: audit row 1 - should match row 42 | J45: =SUM(K42:U42) -> 141
G46: audit row 2 - should match row 42 | J46: ='2-Dashboard'!J19 -> 141 | K46: ='2-Dashboard'!J5 -> 27 | L46: ='2-Dashboard'!J6 -> 16 | M46: ='2-Dashboard'!J7 -> 5 | N46: ='2-Dashboard'!J8 -> 3 | O46: ='2-Dashboard'!J9 -> 8 | P46: ='2-Dashboard'!J10 -> 0 | Q46: ='2-Dashboard'!J11 -> 66 | R46: ='2-Dashboard'!J12 -> 16 | S46: ='2-Dashboard'!J13 -> 0 | T46: ='2-Dashboard'!J14 -> 0 | U46: ='2-Dashboard'!J15 -> 0
G54: ='2-Dashboard'!B1 -> EaRNed SUCCESS |Monthly Dashboard | FY JAN 2017 - DEC 2017

Sheet 8-Audit Legend
B1: XXERN-XLocationX Monthly Dashboard | FY 20xx/xx | AJ1: mm/01/yyyy
B2: Employers | G2: Services this Month | J2: Delivered Services YTD | K2: Avg Services / Mo. YTD | L2: Unique Emps. Served YTD | M2: Requests this Month by type | S2: Requests YTD by type | Y2: Employees by Request Multiple YTD - including pends | AE2: Retention % a | AO2: YTD Utilization % Updated quarterlyb
G3: Delivered | H3: Pending | I3: Total Service Interfaces | M3: Total | N3: HR | O3: Supervisor | P3: Self | Q3: Co-Worker | R3: Other | S3: Total | T3: HR | U3: Supervisor | V3: Self | W3: Co-Worker | X3: Other | Y3: 1x | Z3: 2x | AA3: 3x | AB3: 4x+ | AE3: YTD | AG3: Q1 | AI3: Q2 | AK3: Q3 | AM3: Q4 | AO3: Total Ees | AP3: DHHS Ees | AQ3: Non-DHHS Ees
AE4: ERN | AF4: Co | AG4: ERN | AH4: Co | AI4: ERN | AJ4: Co | AK4: ERN | AL4: Co | AM4: ERN | AN4: Co
B5: Blinded 1 | G5: 32 | H5: 2 | I5: =SUM(G5:H5) -> 34 | J5: 108 | K5: =J5/G55 -> 21.6 | L5: 38 | M5: =SUM(N5:R5) -> 21 | N5: 6 | P5: 13 | Q5: 1 | R5: 1 | S5: =SUM(T5:X5) -> 69 | T5: 11 | U5: 3 | V5: 53 | W5: 1 | X5: 1 | Y5: 22 | Z5: 10 | AA5: 4 | AB5: 3
B6: Blinded 2 | G6: 26 | H6: 1 | I6: 27 | J6: 97 | K6: =J6/G55 -> 19.4 | L6: 70 | M6: 24 | N6: 4 | P6: 18 | Q6: 1 | R6: 1 | S6: =SUM(T6:X6) -> 94 | T6: 18 | V6: 73 | W6: 2 | X6: 1 | Y6: 60 | Z6: 7 | AA6: 4 | AB6: 2
B7: Blinded 3 | G7: 5 | H7: 3 | I7: 8 | J7: 16 | K7: =J7/G55 -> 3.2 | L7: 12 | M7: 6 | O7: 1 | P7: 5 | S7: 17 | T7: 7 | U7: 1 | V7: 9 | Y7: 10 | Z7: 2 | AA7: 1
B8: Blinded 4 | G8: 9 | H8: 1 | I8: 10 | J8: 36 | K8: =J8/G55 -> 7.2 | L8: 28 | M8: 8 | N8: 1 | P8: 6 | R8: 1 | S8: 35 | T8: 9 | V8: 25 | X8: 1 | Y8: 22 | Z8: 4 | AA8: 2
B9: Blinded 5 | G9: 2 | I9: 2 | J9: 6 | K9: =J9/G55 -> 1.2 | L9: 6 | M9: 2 | N9: 1 | P9: 1 | S9: 6 | T9: 1 | U9: 1 | V9: 4 | Y9: 6 | Z9: 0 | AA9: 0
B10: Blinded 6 | G10: 1 | I10: 1 | J10: 18 | K10: =J10/G55 -> 3.6 | L10: 9 | M10: 1 | P10: 1 | S10: 19 | T10: 1 | V10: 18 | Y10: 5 | Z10: 2 | AA10: 0 | AB10: 3
B11: Blinded 7 | G11: 2 | I11: 2 | J11: 6 | K11: =J11/G55 -> 1.2 | L11: 3 | M11: 1 | N11: 1 | S11: 4 | T11: 3 | V11: 1 | Y11: 2 | Z11: 1 | AA11: 0
B12: Blinded 8 | G12: 1 | I12: 1 | J12: 5 | K12: =J12/G55 -> 1 | L12: 4 | M12: 1 | P12: 1 | S12: 4 | U12: 1 | V12: 3 | Y12: 4 | Z12: 0 | AA12: 0
B13: Blinded 9 | G13: 5 | H13: 1 | I13: 6 | J13: 24 | K13: =J13/G55 -> 4.8 | L13: 14 | M13: 2 | N13: 2 | S13: 19 | T13: 3 | V13: 15 | X13: 1 | Y13: 11 | Z13: 2 | AA13: 0 | AB13: 1
B14: Totals | G14: =SUM(G5:G13) -> 83 | H14: =SUM(H5:H13) -> 8 | I14: 91 | J14: 316 | K14: 63.2 | L14: 184 | M14: 66 | N14: 15 | O14: 1 | P14: 45 | Q14: 2 | R14: 3 | S14: 267 | T14: 53 | U14: 6 | V14: 201 | W14: 3 | X14: 4 | Y14: 142 | Z14: 28 | AA14: 11 | AB14: =SUM(AB5:AB13) -> 9
B17: 20 | C17: paste as a picture | N17: 21 | O17: paste as a picture | AB17: Served/Unq Ee | AE17: Month | AG17: YTD | AJ17: Service by Category | AN17: Mo | AP17: YTD
AB18: Total DHHS | AE18: =SUM(AE19:AF20) -> 26 | AG18: =SUM(AG19:AH20) -> 82 | AJ18: Auto Repair | AN18: 0 | AP18: 4
AB19: Incumbent DHHS | AE19: 25 | AG19: 78 | AJ19: Career Counseling | AN19: 2 | AP19: 6
AB20: New DHHS c | AE20: 1 | AG20: 4 | AJ20: Child Care | AN20: 11 | AP20: 29
AB21: Non-DHHS | AE21: =SUM(AE22:AF23) -> 29 | AG21: =SUM(AG22:AH23) -> 71 | AJ21: Child Support | AP21: 3
AB22: Former DHHS | AE22: 4 | AG22: 4 | AJ22: Clothing
AB23: Never DHHS | AE23: 25 | AG23: 67 | AJ23: Coaching | AN23: 6 | AP23: 10
AB24: Unknown/coded | AE24: 12 | AG24: 31 | AJ24: Comm Food Rsrc | AP24: 2
AJ25: Counseling Request | AN25: 4 | AP25: 11
AJ26: Domestic Violence
AB27: Total | AE27: =SUM(AE18,AE21,AE24) -> 67 | AG27: =SUM(AG18,AG21,AG24) -> 184 | AJ27: Education | AN27: 2 | AP27: 5
AJ28: Elder Care
B29: 21 | C29: paste as a picture | AB29: Bridge Loans | AJ29: Emergency | AN29: 3 | AP29: 4
N30: 23a | U30: 23b | AB30: New Loans this Month | AG30: 2 | AJ30: Employment | AN30: 2 | AP30: 5
AB31: Disbursed this Month | AG31: 2000 | AJ31: Financial | AN31: 7 | AP31: 26
AB32: Open Bridge Loans | AG32: 52 | AJ32: Financial Literacy | AN32: 1 | AP32: 1
AB33: Paid/Clsed Bridge Loans | AG33: 36 | AJ33: Food Assistance | AN33: 5 | AP33: 32
AB34: Total Disbursed | AG34: 252000 | AJ34: Homeless Prev. | AN34: 1 | AP34: 3
AB35: Balance Remaining | AG35: 198523 | AJ35: Furniture | AN35: 1 | AP35: 3
AB36: Savings | AG36: 23462 | AJ36: Govt Agency Nav. | AN36: 11 | AP36: 46
AB37: Delinquent | AG37: 3216 | AJ37: Hard Training
AB38: Loss | AG38: 1425 | AJ38: Health/Insurance | AN38: 2 | AP38: 24
AJ39: Home Repair | AP39: 1
AJ40: Homeless Shelter
AB41: Total Fin Supt | AE41: Month | AG41: YTD | AJ41: Housing | AN41: 7 | AP41: 33
AB42: Priv/Com Rsrc | AG42: 1820 | AJ42: Immigration
AB43: DHHS | AE43: 3118 | AG43: 11833 | AJ43: Legal Assistance | AN43: 2 | AP43: 6
AB44: Alt Public Asst | AJ44: Literacy | AP44: 1
AB45: Loan | AE45: 2000 | AG45: 7000 | AJ45: Other | AP45: 7
AB46: Com Food Rsrc | AG46: 240 | AJ46: Soft Training
AB47: Total | AE47: =SUM(AE42:AF46) -> 5118 | AG47: =SUM(AG42:AH46) -> 20893 | AJ47: Sub.Abuse/Addictns
AJ48: Transportation | AN48: 10 | AP48: 39
AJ49: Utilities | AN49: 6 | AP49: 15
AJ50: Water/Public Health
AJ51: Total | AN51: =SUM(AN18:AO50) -> 83 | AP51: =SUM(AP18:AQ50) -> 316
B52: a - Averaged across all eers from total distinct ees served. Each rention quarter looks back 9 mos prior to Q start. | P52: b - Based upon DHHS analysis of active ees at FY start, then extrapolated according to reported ee count for Q. | AE52: c - Not on DHHS in any of three previous months.
G55: 5

Sheet General Instr (hidden)
A1: .

Sheet Unlocked Cells Legend (hidden)
